fUST/lending_fUST_20260420
["ID","MTS","AMOUNT","RATE_DAILY","PERIOD"]
[420883878,1776697846880,-577.7,0.0001452,2]
[420883880,1776697846895,-554.97,0.0001452,2]
[420883881,1776697846905,-500.0,0.0001452,2]
[420883882,1776697846914,-1178.96,0.0001452,2]
[420883883,1776697846924,-500.0,0.0001452,2]
[420883884,1776697846933,-500.0,0.0001452,2]
[420883885,1776697846942,-500.0,0.0001452,2]
[420883886,1776697846952,-500.0,0.0001452,2]
[420883888,1776697846961,-668.58,0.0001452,2]
[420883889,1776697846971,-642.42,0.0001452,2]
[420883890,1776697846981,-500.0,0.0001452,2]
[420883891,1776697846990,-500.0,0.0001452,2]
[420883892,1776697847000,-563.13,0.0001452,2]
[420883893,1776697847009,-645.93,0.0001452,2]
[420883894,1776697847019,-568.36,0.0001452,2]
[420883895,1776697847029,-502.66,0.0001452,2]
[420883896,1776697847039,-500.0,0.0001452,2]
[420883897,1776697847048,-553.5,0.0001452,2]
[420883898,1776697847058,-620.23,0.0001452,2]
[420883899,1776697847067,-500.0,0.0001452,2]
[420883900,1776697847076,-631.41,0.0001452,2]
[420883901,1776697847085,-500.0,0.0001452,2]
[420883902,1776697847094,-552.19,0.0001452,2]
[420883903,1776697847104,-500.0,0.0001452,2]
[420883904,1776697847113,-776.9,0.0001452,2]
[420883905,1776697847122,-664.2,0.0001452,2]
[420883906,1776697847132,-500.0,0.0001452,2]
[420883907,1776697847141,-500.0,0.0001452,2]
[420883908,1776697847150,-1848.07,0.0001452,2]
[420883909,1776697847159,-500.0,0.0001452,2]
[420883910,1776697847169,-548.36,0.0001452,2]
[420883911,1776697847179,-500.0,0.0001452,2]
[420883912,1776697847190,-500.0,0.0001452,2]
[420883913,1776697847199,-500.0,0.0001452,2]
[420883914,1776697847208,-500.0,0.0001452,2]
[420883916,1776697847218,-500.0,0.0001452,2]
[420883918,1776697847227,-500.0,0.0001452,2]
[420883919,1776697847236,-545.57,0.0001452,2]
[420883920,1776697847246,-500.0,0.0001452,2]
[420883921,1776697847256,-500.0,0.0001452,2]
[420883922,1776697847265,-500.0,0.0001452,2]
[420883923,1776697847275,-500.0,0.0001452,2]
[420883924,1776697847284,-982.1,0.0001452,2]
[420883925,1776697847293,-1263.53,0.0001452,2]
[420883926,1776697847302,-500.0,0.0001452,2]
[420883927,1776697847311,-500.0,0.0001452,2]
[420883928,1776697847321,-500.0,0.0001452,2]
[420883929,1776697847330,-500.0,0.0001452,2]
[420883932,1776697847340,-1006.77,0.0001452,2]
[420883934,1776697847350,-500.0,0.0001452,2]
[420883936,1776697847359,-770.99,0.0001452,2]
[420883937,1776697847369,-620.25,0.0001452,2]
[420883939,1776697847378,-500.0,0.0001452,2]
[420883941,1776697847388,-500.0,0.0001452,2]
[420883942,1776697847396,-500.0,0.0001452,2]
[420883943,1776697847406,-1256.74,0.0001452,2]
[420883944,1776697847415,-500.0,0.0001452,2]
[420883945,1776697847425,-500.0,0.0001452,2]
[420883946,1776697847434,-500.0,0.0001452,2]
[420883947,1776697847443,-1379.71,0.0001452,2]
[420883948,1776697847453,-837.44,0.0001452,2]
[420883949,1776697847462,-637.93,0.0001452,2]
[420883950,1776697847471,-3026.39,0.0001452,2]
[420883951,1776697847481,-500.0,0.0001452,2]
[420883952,1776697847490,-500.0,0.0001452,2]
[420883953,1776697847499,-579.65,0.0001452,2]
[420883954,1776697847509,-500.0,0.0001452,2]
[420883955,1776697847518,-500.0,0.0001452,2]
[420883956,1776697847528,-5061.72,0.0001452,2]
[420883957,1776697847537,-704.3,0.0001452,2]
[420883958,1776697847547,-500.0,0.0001452,2]
[420883959,1776697847556,-7812.14,0.0001452,2]
[420883960,1776697847566,-7538.05,0.0001452,2]
[420883961,1776697847575,-500.0,0.0001452,2]
[420883962,1776697847585,-848.1,0.0001452,2]
[420883963,1776697847595,-500.0,0.0001452,2]
[420883964,1776697847604,-500.0,0.0001452,2]
[420883965,1776697847614,-500.0,0.0001452,2]
[420883966,1776697847624,-2149.31,0.0001452,2]
[420883967,1776697847633,-627.86,0.0001452,2]
[420883968,1776697847642,-637.71,0.0001452,2]
[420883969,1776697847651,-6266.9,0.0001452,2]
[420883970,1776697847660,-7087.87,0.0001452,2]
[420883971,1776697847670,-500.0,0.0001452,2]
[420883972,1776697847680,-500.0,0.0001452,2]
[420883973,1776697847690,-971.71,0.0001452,2]
[420883974,1776697847699,-11259.56,0.0001452,2]
[420883975,1776697847708,-1935.8,0.0001452,2]
[420883976,1776697847718,-500.0,0.0001452,2]
[420883977,1776697847727,-715.37,0.0001452,2]
[420883978,1776697847737,-500.0,0.0001452,2]
[420883979,1776697847746,-500.0,0.0001452,2]
[420883980,1776697847758,-500.0,0.0001452,2]
[420883981,1776697847767,-7668.58,0.0001452,2]
[420883982,1776697847777,-500.0,0.0001452,2]
[420883983,1776697847787,-500.0,0.0001452,2]
[420883984,1776697847796,-500.0,0.0001452,2]
[420883985,1776697847806,-2643.17,0.0001452,2]
[420883986,1776697847815,-885.04,0.0001452,2]
[420883987,1776697847824,-500.0,0.0001452,2]
[420883988,1776697847833,-500.0,0.0001452,2]
[420883989,1776697847843,-4773.32,0.0001452,2]
[420883990,1776697847853,-500.0,0.0001452,2]
[420883991,1776697847862,-1953.07,0.0001452,2]
[420883992,1776697847871,-1148.87,0.0001452,2]
[420883993,1776697847881,-6836.31,0.0001452,2]
[420883994,1776697847890,-1762.73,0.0001452,2]
[420883995,1776697847899,-579.88,0.0001452,2]
[420883996,1776697847908,-739.06,0.0001452,2]
[420883997,1776697847917,-500.0,0.0001452,2]
[420883998,1776697847927,-801.31,0.0001452,2]
[420883999,1776697847937,-2060.53,0.0001452,2]
[420884000,1776697847947,-500.0,0.0001452,2]
[420884001,1776697847956,-500.0,0.0001452,2]
[420884002,1776697847965,-500.0,0.0001452,2]
[420884003,1776697847975,-526.34,0.0001452,2]
[420884004,1776697847985,-500.0,0.0001452,2]
[420884005,1776697847994,-4284.21,0.0001452,2]
[420884006,1776697848004,-500.0,0.0001452,2]
[420884007,1776697848013,-500.0,0.0001452,2]
[420884008,1776697848022,-500.0,0.0001452,2]
[420884009,1776697848032,-500.0,0.0001452,2]
[420884010,1776697848043,-526.37,0.0001452,2]
[420884011,1776697848053,-1760.36,0.0001452,2]
[420884012,1776697848062,-2347.23,0.0001452,2]
[420884013,1776697848073,-1333.42,0.0001452,2]
[420884014,1776697848084,-3594.48,0.0001452,2]
[420884015,1776697848094,-500.0,0.0001452,2]
[420884016,1776697848104,-500.0,0.0001452,2]
[420884017,1776697848114,-3450.81,0.0001452,2]
[420884018,1776697848124,-1177.09,0.0001452,2]
[420884019,1776697848134,-500.0,0.0001452,2]
[420884020,1776697848143,-2847.71,0.0001452,2]
[420884021,1776697848153,-630.91,0.0001452,2]
[420884022,1776697848162,-1156.2,0.0001452,2]
[420884023,1776697848174,-500.0,0.0001452,2]
[420884024,1776697848184,-3459.64,0.0001452,2]
[420884025,1776697848193,-4857.33,0.0001452,2]
[420884026,1776697848203,-1683.9,0.0001452,2]
[420884027,1776697848212,-1156.56,0.0001452,2]
[420884028,1776697848221,-3548.37,0.0001452,2]
[420884029,1776697848231,-3285.0,0.0001452,2]
[420884030,1776697848241,-30083.02,0.0001452,2]
[420884031,1776697848250,-1070.11,0.0001452,2]
[420884032,1776697848260,-500.0,0.0001452,2]
[420884033,1776697848269,-2382.24,0.0001452,2]
[420884034,1776697848278,-500.0,0.0001452,2]
[420884035,1776697848289,-636.81,0.0001452,2]
[420884036,1776697848298,-695.0,0.0001452,2]
[420884037,1776697848475,-500.0,0.0001452,2]
[420884038,1776697848485,-500.0,0.0001452,2]
[420884039,1776697848495,-1586.07,0.0001452,2]
[420884040,1776697848504,-500.0,0.0001452,2]
[420884041,1776697848514,-269.00722147,0.0001452,2]
[420884042,1776697848524,-2590.88,0.0001452,2]
[420884043,1776697848533,-2217.75,0.0001452,2]
[420884044,1776697848544,-1190.0,0.00014521,2]
[420884045,1776697848553,-1000.0,0.00014521,2]
[420884046,1776697848562,-1000.0,0.00014521,2]
[420884047,1776697848572,-1000.0,0.00014521,2]
[420884048,1776697848582,-1000.0,0.00014521,2]
[420884049,1776697848591,-150.0,0.00014573,2]
[420884050,1776697848601,-500.0,0.00014573,2]
[420884051,1776697848610,-500.0,0.00014573,2]
[420884052,1776697848620,-500.0,0.00014573,2]
[420884053,1776697848629,-500.0,0.00014573,2]
[420884054,1776697848639,-500.0,0.00014573,2]
[420884055,1776697848649,-373.95706971,0.00014573,2]
[420884056,1776697848658,-500.0,0.00014573,2]
[420884057,1776697848668,-500.0,0.00014573,2]
[420884058,1776697848679,-200.0,0.0001461,2]
[420884059,1776697848690,-3471.769036,0.00014659,2]
[420884060,1776697848699,-1117.376266,0.00014659,7]
[420884061,1776697848709,-1797.338076,0.00014659,7]
[420884062,1776697848718,-11391.415022,0.00014659,7]
[420884063,1776697848727,-2312.83697232,0.00014698,2]
[420884064,1776697848738,-791.0,0.000147,2]
[420884065,1776697848747,-2000.0,0.00014708,2]
[420884066,1776697848757,-2000.0,0.00014708,2]
[420884067,1776697848767,-2000.0,0.00014708,2]
[420884068,1776697848776,-2000.0,0.00014708,2]
[420884069,1776697848785,-2000.0,0.00014708,2]
[420884070,1776697848795,-2000.0,0.00014708,2]
[420884071,1776697848804,-2000.0,0.00014708,2]
[420884072,1776697848818,-2000.0,0.00014708,2]
[420884073,1776697848828,-500.0,0.00014741,2]
[420884074,1776697848837,-577.7,0.00014794,2]
[420884075,1776697848847,-554.97,0.00014794,2]
[420884076,1776697848857,-500.0,0.00014794,2]
[420884077,1776697848867,-1178.96,0.00014794,2]
[420884078,1776697848878,-500.0,0.00014794,2]
[420884079,1776697848888,-500.0,0.00014794,2]
[420884080,1776697848899,-500.0,0.00014794,2]
[420884081,1776697848908,-500.0,0.00014794,2]
[420884082,1776697848918,-668.58,0.00014794,2]
[420884083,1776697848929,-642.42,0.00014794,2]
[420884084,1776697848939,-500.0,0.00014794,2]
[420884085,1776697848948,-500.0,0.00014794,2]
[420884086,1776697848958,-563.13,0.00014794,2]
[420884087,1776697848968,-645.93,0.00014794,2]
[420884088,1776697848977,-568.36,0.00014794,2]
[420884089,1776697848987,-502.66,0.00014794,2]
[420884090,1776697848997,-500.0,0.00014794,2]
[420884091,1776697849006,-553.5,0.00014794,2]
[420884092,1776697849015,-620.23,0.00014794,2]
[420884093,1776697849025,-500.0,0.00014794,2]
[420884094,1776697849035,-631.41,0.00014794,2]
[420884095,1776697849045,-500.0,0.00014794,2]
[420884096,1776697849055,-552.19,0.00014794,2]
[420884097,1776697849065,-500.0,0.00014794,2]
[420884098,1776697849074,-776.9,0.00014794,2]
[420884099,1776697849083,-664.2,0.00014794,2]
[420884100,1776697849093,-500.0,0.00014794,2]
[420884101,1776697849104,-500.0,0.00014794,2]
[420884102,1776697849113,-1848.07,0.00014794,2]
[420884103,1776697849123,-500.0,0.00014794,2]
[420884104,1776697849133,-548.36,0.00014794,2]
[420884105,1776697849143,-500.0,0.00014794,2]
[420884106,1776697849152,-500.0,0.00014794,2]
[420884107,1776697849162,-500.0,0.00014794,2]
[420884108,1776697849171,-500.0,0.00014794,2]
[420884109,1776697849182,-500.0,0.00014794,2]
[420884110,1776697849191,-500.0,0.00014794,2]
[420884111,1776697849201,-545.57,0.00014794,2]
[420884112,1776697849211,-500.0,0.00014794,2]
[420884113,1776697849220,-500.0,0.00014794,2]
[420884114,1776697849230,-500.0,0.00014794,2]
[420884115,1776697849239,-500.0,0.00014794,2]
[420884116,1776697849249,-982.1,0.00014794,2]
[420884117,1776697849259,-1263.53,0.00014794,2]
[420884118,1776697849269,-500.0,0.00014794,2]
[420884119,1776697849278,-500.0,0.00014794,2]
[420884120,1776697849288,-500.0,0.00014794,2]
[420884121,1776697849298,-500.0,0.00014794,2]
[420884122,1776697849308,-1006.77,0.00014794,2]
[420884123,1776697849317,-500.0,0.00014794,2]
[420884124,1776697849326,-770.99,0.00014794,2]
[420884125,1776697849337,-620.25,0.00014794,2]
[420884126,1776697849346,-500.0,0.00014794,2]
[420884127,1776697849355,-500.0,0.00014794,2]
[420884128,1776697849365,-500.0,0.00014794,2]
[420884129,1776697849374,-1256.74,0.00014794,2]
[420884130,1776697849384,-500.0,0.00014794,2]
[420884131,1776697849394,-500.0,0.00014794,2]
[420884132,1776697849403,-500.0,0.00014794,2]
[420884133,1776697849413,-1379.71,0.00014794,2]
[420884134,1776697849422,-837.44,0.00014794,2]
[420884135,1776697849431,-637.93,0.00014794,2]
[420884136,1776697849440,-3026.39,0.00014794,2]
[420884137,1776697849450,-500.0,0.00014794,2]
[420884138,1776697849460,-500.0,0.00014794,2]
[420884139,1776697849470,-579.65,0.00014794,2]
[420884140,1776697849479,-500.0,0.00014794,2]
[420884141,1776697849489,-500.0,0.00014794,2]
[420884142,1776697849499,-5061.72,0.00014794,2]
[420884143,1776697849509,-704.3,0.00014794,2]
[420884144,1776697849518,-500.0,0.00014794,2]
[420884145,1776697849528,-7812.14,0.00014794,2]
[420884146,1776697849537,-7538.05,0.00014794,2]
[420884147,1776697849547,-500.0,0.00014794,2]
[420884148,1776697849557,-848.1,0.00014794,2]
[420884149,1776697849566,-500.0,0.00014794,2]
[420884150,1776697849576,-500.0,0.00014794,2]
[420884151,1776697849587,-463.92527874,0.00014794,2]
[420884152,1776697849596,-2149.31,0.00014794,2]
[420884153,1776697849606,-627.86,0.00014794,2]
[420884154,1776697849616,-637.71,0.00014794,2]
[420884155,1776697849625,-6266.9,0.00014794,2]
[420884156,1776697849636,-7087.87,0.00014794,2]
[420884157,1776697849645,-500.0,0.00014794,2]
[420884158,1776697849655,-500.0,0.00014794,2]
[420884159,1776697849664,-971.71,0.00014794,2]
[420884160,1776697849675,-11259.56,0.00014794,2]
[420884161,1776697849685,-1935.8,0.00014794,2]
[420884162,1776697849694,-500.0,0.00014794,2]
[420884163,1776697849703,-715.37,0.00014794,2]
[420884164,1776697849713,-500.0,0.00014794,2]
[420884165,1776697849722,-500.0,0.00014794,2]
[420884166,1776697849732,-500.0,0.00014794,2]
[420884167,1776697849741,-7668.58,0.00014794,2]
[420884168,1776697849751,-500.0,0.00014794,2]
[420884169,1776697849761,-500.0,0.00014794,2]
[420884170,1776697849770,-500.0,0.00014794,2]
[420884171,1776697849780,-2643.17,0.00014794,2]
[420884172,1776697849790,-885.04,0.00014794,2]
[420884173,1776697849800,-500.0,0.00014794,2]
[420884174,1776697849809,-500.0,0.00014794,2]
[420884175,1776697849818,-4773.32,0.00014794,2]
[420884176,1776697849828,-500.0,0.00014794,2]
[420884177,1776697849838,-1953.07,0.00014794,2]
[420884178,1776697849847,-1148.87,0.00014794,2]
[420884179,1776697849857,-6836.31,0.00014794,2]
[420884180,1776697849866,-1762.73,0.00014794,2]
[420884181,1776697849875,-579.88,0.00014794,2]
[420884182,1776697849885,-739.06,0.00014794,2]
[420884183,1776697849894,-500.0,0.00014794,2]
[420884184,1776697849904,-801.31,0.00014794,2]
[420884185,1776697849913,-2060.53,0.00014794,2]
[420884186,1776697849923,-500.0,0.00014794,2]
[420884187,1776697849932,-500.0,0.00014794,2]
[420884188,1776697849942,-500.0,0.00014794,2]
[420884189,1776697849951,-526.34,0.00014794,2]
[420884190,1776697849961,-500.0,0.00014794,2]
[420884191,1776697849970,-4284.21,0.00014794,2]
[420884192,1776697849980,-500.0,0.00014794,2]
[420884193,1776697849990,-500.0,0.00014794,2]
[420884194,1776697849999,-500.0,0.00014794,2]
[420884195,1776697850009,-500.0,0.00014794,2]
[420884196,1776697850018,-526.37,0.00014794,2]
[420884197,1776697850028,-1760.36,0.00014794,2]
[420884198,1776697850037,-2347.23,0.00014794,2]
[420884199,1776697850047,-1333.42,0.00014794,2]
[420884200,1776697850057,-3594.48,0.00014794,2]
[420884201,1776697850066,-500.0,0.00014794,2]
[420884202,1776697850076,-500.0,0.00014794,2]
[420884203,1776697850085,-3450.81,0.00014794,2]
[420884204,1776697850095,-1177.09,0.00014794,2]
[420884205,1776697850104,-500.0,0.00014794,2]
[420884206,1776697850114,-2847.71,0.00014794,2]
[420884207,1776697850123,-630.91,0.00014794,2]
[420884208,1776697850132,-1156.2,0.00014794,2]
[420884209,1776697850142,-500.0,0.00014794,2]
[420884210,1776697850154,-3459.64,0.00014794,2]
[420884211,1776697850163,-4857.33,0.00014794,2]
[420884212,1776697850172,-1683.9,0.00014794,2]
[420884213,1776697850182,-1156.56,0.00014794,2]
[420884214,1776697850191,-3548.37,0.00014794,2]
[420884215,1776697850200,-3285.0,0.00014794,2]
[420884216,1776697850211,-30083.02,0.00014794,2]
[420884217,1776697850220,-1070.11,0.00014794,2]
[420884218,1776697850230,-500.0,0.00014794,2]
[420884219,1776697850240,-2382.24,0.00014794,2]
[420884220,1776697850249,-543.61893409,0.00014794,2]
[420884221,1776697850258,-636.81,0.00014794,2]
[420884222,1776697850268,-695.0,0.00014794,2]
[420884223,1776697850277,-500.0,0.00014794,2]
[420884224,1776697850286,-500.0,0.00014794,2]
[420884225,1776697850295,-1586.07,0.00014794,2]
[420884226,1776697850305,-500.0,0.00014794,2]
[420884227,1776697850314,-2590.88,0.00014794,2]
[420884228,1776697850324,-2217.75,0.00014794,2]
[420884229,1776697850334,-1190.0,0.00014795,2]
[420884230,1776697850344,-1500.0,0.00014795,2]
[420884231,1776697850353,-180.86933223,0.00014798,2]
[420884232,1776697850363,-200.10053957,0.0001481,2]
[420884233,1776697850372,-659.944586,0.00014826,7]
[420884234,1776697850382,-158.67817209,0.00014842,2]
[420884235,1776697850391,-180.0,0.00014857,2]
[420884236,1776697850400,-3000.0,0.00014912,2]
[420884237,1776697850410,-3000.0,0.00014912,2]
[420884238,1776697850419,-1397.72830355,0.00014912,2]
[420884239,1776697850430,-2000.0,0.0001495,2]
[420884240,1776697850439,-2000.0,0.0001495,2]
[420884241,1776697850448,-2000.0,0.0001495,2]
[420884242,1776697850458,-2000.0,0.0001495,2]
[420884243,1776697850467,-2000.0,0.0001495,2]
[420884244,1776697850477,-2000.0,0.0001495,2]
[420884245,1776697850486,-2000.0,0.0001495,2]
[420884246,1776697850496,-2000.0,0.0001495,2]
[420884247,1776697850506,-2000.0,0.0001495,2]
[420884248,1776697850515,-2000.0,0.0001495,2]
[420884249,1776697850525,-2000.0,0.0001495,2]
[420884250,1776697850534,-2000.0,0.0001495,2]
[420884251,1776697850543,-2000.0,0.0001495,2]
[420884252,1776697850552,-2000.0,0.0001495,2]
[420884253,1776697850562,-2000.0,0.0001495,2]
[420884254,1776697850572,-2000.0,0.0001495,2]
[420884255,1776697850581,-2000.0,0.0001495,2]
[420884256,1776697850591,-2000.0,0.0001495,2]
[420884257,1776697850600,-2000.0,0.0001495,2]
[420884258,1776697850610,-2000.0,0.0001495,2]
[420884259,1776697850619,-2000.0,0.0001495,2]
[420884260,1776697850629,-2000.0,0.0001495,2]
[420884261,1776697850638,-2000.0,0.0001495,2]
[420884262,1776697850647,-2000.0,0.00014956,2]
[420884263,1776697850656,-2000.0,0.00014956,2]
[420884264,1776697850666,-2000.0,0.00014956,2]
[420884265,1776697850676,-2000.0,0.00014956,2]
[420884266,1776697850686,-2000.0,0.00014956,2]
[420884267,1776697850695,-2000.0,0.00014956,2]
[420884268,1776697850704,-173.9758056,0.00014971,2]
[420884269,1776697850714,-2164.24478776,0.00015,7]
[420884270,1776697850723,-864.0,0.00015056,2]
[420884271,1776697850732,-577.7,0.00015068,2]
[420884272,1776697850741,-554.97,0.00015068,2]
[420884273,1776697850751,-500.0,0.00015068,2]
[420884274,1776697850760,-1178.96,0.00015068,2]
[420884275,1776697850769,-500.0,0.00015068,2]
[420884276,1776697850778,-500.0,0.00015068,2]
[420884277,1776697850788,-500.0,0.00015068,2]
[420884278,1776697850798,-500.0,0.00015068,2]
[420884279,1776697850855,-668.58,0.00015068,2]
[420884280,1776697850865,-642.42,0.00015068,2]
[420884281,1776697850875,-500.0,0.00015068,2]
[420884282,1776697850886,-563.13,0.00015068,2]
[420884283,1776697850895,-645.93,0.00015068,2]
[420884284,1776697850904,-568.36,0.00015068,2]
[420884285,1776697850914,-502.66,0.00015068,2]
[420884286,1776697850923,-500.0,0.00015068,2]
[420884287,1776697850934,-553.5,0.00015068,2]
[420884288,1776697850943,-620.23,0.00015068,2]
[420884289,1776697850952,-500.0,0.00015068,2]
[420884290,1776697850961,-631.41,0.00015068,2]
[420884291,1776697850969,-500.0,0.00015068,2]
[420884292,1776697850979,-552.19,0.00015068,2]
[420884293,1776697850988,-500.0,0.00015068,2]
[420884294,1776697850997,-776.9,0.00015068,2]
[420884295,1776697851007,-664.2,0.00015068,2]
[420884296,1776697851016,-500.0,0.00015068,2]
[420884297,1776697851026,-500.0,0.00015068,2]
[420884298,1776697851035,-1848.07,0.00015068,2]
[420884299,1776697851044,-500.0,0.00015068,2]
[420884300,1776697851053,-548.36,0.00015068,2]
[420884301,1776697851062,-500.0,0.00015068,2]
[420884302,1776697851072,-500.0,0.00015068,2]
[420884303,1776697851081,-500.0,0.00015068,2]
[420884304,1776697851091,-500.0,0.00015068,2]
[420884305,1776697851099,-500.0,0.00015068,2]
[420884306,1776697851109,-500.0,0.00015068,2]
[420884307,1776697851118,-545.57,0.00015068,2]
[420884308,1776697851127,-500.0,0.00015068,2]
[420884309,1776697851137,-500.0,0.00015068,2]
[420884310,1776697851146,-500.0,0.00015068,2]
[420884311,1776697851155,-500.0,0.00015068,2]
[420884312,1776697851165,-982.1,0.00015068,2]
[420884313,1776697851174,-1263.53,0.00015068,2]
[420884314,1776697851183,-500.0,0.00015068,2]
[420884315,1776697851193,-500.0,0.00015068,2]
[420884316,1776697851202,-500.0,0.00015068,2]
[420884317,1776697851211,-500.0,0.00015068,2]
[420884318,1776697851220,-1006.77,0.00015068,2]
[420884319,1776697851230,-500.0,0.00015068,2]
[420884320,1776697851239,-770.99,0.00015068,2]
[420884321,1776697851249,-620.25,0.00015068,2]
[420884322,1776697851258,-500.0,0.00015068,2]
[420884323,1776697851267,-500.0,0.00015068,2]
[420884324,1776697851275,-500.0,0.00015068,2]
[420884325,1776697851285,-1256.74,0.00015068,2]
[420884326,1776697851294,-500.0,0.00015068,2]
[420884327,1776697851303,-500.0,0.00015068,2]
[420884328,1776697851312,-500.0,0.00015068,2]
[420884329,1776697851321,-1379.71,0.00015068,2]
[420884330,1776697851330,-837.44,0.00015068,2]
[420884331,1776697851339,-637.93,0.00015068,2]
[420884332,1776697851348,-3026.39,0.00015068,2]
[420884333,1776697851358,-500.0,0.00015068,2]
[420884334,1776697851368,-500.0,0.00015068,2]
[420884335,1776697851377,-579.65,0.00015068,2]
[420884336,1776697851386,-500.0,0.00015068,2]
[420884337,1776697851396,-500.0,0.00015068,2]
[420884338,1776697851405,-5061.72,0.00015068,2]
[420884339,1776697851415,-704.3,0.00015068,2]
[420884340,1776697851425,-500.0,0.00015068,2]
[420884341,1776697851434,-4543.86916452,0.00015068,2]
[420884342,1776697852121,-503.73373809,0.00012225,2]
[420884343,1776697852130,-921.2468,0.00013835,2]
[420884344,1776697852140,-140.07807685,0.00013972,2]
[420884345,1776697852162,-825.93192315,0.00013972,2]
[420884346,1776697852171,-966.01,0.00014246,2]
[420884347,1776697852183,-921.2468,0.00014383,2]
[420884348,1776697852193,-966.01,0.0001452,2]
[420884349,1776697852204,-966.01,0.00014794,2]
[420884350,1776697852213,-921.2468,0.00014931,2]
[420884351,1776697852224,-3268.27083548,0.00015068,2]
[420884352,1776697852233,-7538.05,0.00015068,2]
[420884353,1776697852243,-500.0,0.00015068,2]
[420884354,1776697852252,-848.1,0.00015068,2]
[420884355,1776697852262,-500.0,0.00015068,2]
[420884356,1776697852271,-500.0,0.00015068,2]
[420884357,1776697852281,-2149.31,0.00015068,2]
[420884358,1776697852290,-627.86,0.00015068,2]
[420884359,1776697852300,-637.71,0.00015068,2]
[420884360,1776697852309,-308.62076137,0.00015068,2]
[420884460,1776698746133,-380.61842395,9.133e-05,2]
[420884497,1776699031821,-5000.0,8.862e-05,2]
[420884498,1776699031831,-2078.37296387,8.952e-05,2]
[420884539,1776699041344,-2077.39975154,8.952e-05,2]
[420884541,1776699041355,-545.0,8.952e-05,2]
[420884543,1776699041368,-150.0,8.997e-05,2]
[420884544,1776699041380,-300.0,9.041e-05,2]
[420884546,1776699041390,-3787.0,9.225e-05,2]
[420884548,1776699041406,-4148.086591,9.309e-05,2]
[420884550,1776699041424,-381.051229,9.848e-05,2]
[420884552,1776699041435,-1943.09422931,0.0001,2]
[420884554,1776699041446,-36000.0,0.0001,2]
[420884556,1776699041456,-440.92779339,0.00010159,2]
[420884558,1776699041467,-500.0,0.00010159,2]
[420884559,1776699041490,-500.0,0.00010159,2]
[420884560,1776699041511,-500.0,0.00010159,2]
[420884561,1776699041535,-500.0,0.00010159,2]
[420884562,1776699041553,-500.0,0.00010159,2]
[420884564,1776699041579,-500.0,0.00010159,2]
[420884566,1776699041597,-500.0,0.00010159,2]
[420884567,1776699041609,-500.0,0.00010159,2]
[420884568,1776699041630,-500.0,0.00010159,2]
[420884569,1776699041642,-500.0,0.00010159,2]
[420884571,1776699041662,-500.0,0.00010159,2]
[420884574,1776699041677,-500.0,0.00010159,2]
[420884576,1776699041688,-500.0,0.00010159,2]
[420884577,1776699041698,-500.0,0.00010159,2]